bitfinex/quotes_BTCUSD_20260104
["timestamp","ask_amount","ask_price","bid_price","bid_amount"]
[1767528670412,0.06579398,91194.0,91189.0,0.06579726]
[1767528670617,0.06579366,91195.0,91190.0,0.06579665]
[1767528671015,0.06579366,91195.0,91190.0,0.06570628]
[1767528671400,0.06579383,91194.0,91189.0,0.06579726]
[1767528671603,0.06579366,91195.0,91189.0,0.06579726]
[1767528671604,0.06579366,91195.0,91190.0,0.06579658]
[1767528671904,0.06579427,91194.0,91189.0,0.05952035]
[1767528672477,0.06579638,91192.0,91188.0,0.01096635]
[1767528672595,0.0657947,91193.0,91188.0,0.01096635]
[1767528672796,0.0657947,91193.0,91188.0,0.06579771]
[1767528673103,0.0657947,91193.0,91189.0,0.01096623]
[1767528673878,0.06579427,91194.0,91189.0,0.06579728]
[1767528674085,0.01096575,91193.0,91189.0,0.06579728]
[1767528674303,0.01096587,91192.0,91188.0,0.06579771]
[1767528674453,0.06579525,91192.0,91187.0,0.0657986]
[1767528674619,0.01096587,91192.0,91188.0,0.05483176]
[1767528674822,0.06579533,91192.0,91187.0,0.0657986]
[1767528675119,0.01096575,91193.0,91188.0,0.06579757]
[1767528675322,0.01096575,91193.0,91189.0,0.01096623]
[1767528675526,0.06579467,91193.0,91189.0,0.01096623]
[1767528675728,0.06579467,91193.0,91188.0,0.06579757]
[1767528677598,0.06579527,91192.0,91188.0,0.01096635]
[1767528677803,0.06579467,91193.0,91188.0,0.06579801]
[1767528678370,0.01096587,91192.0,91188.0,0.06579801]
[1767528678573,0.00473362,91192.0,91188.0,0.04848408]
[1767528678793,0.05956303,91192.0,91188.0,0.04848408]
[1767528679532,0.00473362,91192.0,91188.0,0.04848408]
[1767528679670,0.00473362,91192.0,91187.0,0.05483207]
[1767528680522,0.06579712,91191.0,91187.0,0.01096647]
[1767528680725,0.01096599,91191.0,91187.0,0.06579881]
[1767528680900,0.05956316,91192.0,91187.0,0.06579881]
[1767528681641,0.00473362,91192.0,91188.0,0.06579806]
[1767528682224,0.06579463,91193.0,91189.0,0.01096623]
[1767528682628,0.06579485,91194.0,91189.0,0.06579721]
[1767528682945,0.01096575,91193.0,91189.0,0.01096623]
[1767528683129,0.06579458,91193.0,91190.0,0.04848408]
[1767528683327,0.06579458,91193.0,91189.0,0.01096623]
[1767528683526,0.06579485,91194.0,91190.0,0.04848408]
[1767528684324,0.01096575,91193.0,91190.0,0.04848408]
[1767528685328,0.06579485,91194.0,91190.0,0.04848408]
[1767528685735,0.01096563,91194.0,91190.0,0.11428069]
[1767528685933,0.05482759,91195.0,91190.0,0.11428069]
[1767528685934,0.0657931,91195.0,91190.0,0.11428069]
[1767528686136,0.0657931,91195.0,91191.0,0.04848408]
[1767528687578,0.06579387,91194.0,91191.0,0.04848408]
[1767528688374,0.01096563,91194.0,91191.0,0.04848408]
[1767528688888,0.0657931,91195.0,91191.0,0.04848408]
[1767528689750,0.06579408,91194.0,91191.0,0.04848408]
[1767528690288,0.06579408,91194.0,91191.0,0.04748508]
[1767528691532,0.06579408,91194.0,91190.0,0.06579666]
[1767528692296,0.06579408,91194.0,91189.0,0.06579726]
[1767528692923,0.01096563,91194.0,91190.0,0.01096611]
[1767528693771,0.01096563,91194.0,91190.0,0.06579635]
[1767528693970,0.06579394,91194.0,91189.0,0.06579726]
[1767528694411,0.06579458,91193.0,91189.0,0.06579726]
[1767528694589,0.06579394,91194.0,91190.0,0.01096611]
[1767528695590,0.06479486,91194.0,91190.0,0.01096611]
[1767528695785,0.00996663,91194.0,91190.0,0.06579648]
[1767528696740,0.01096551,91195.0,91191.0,0.06579573]
[1767528697336,0.06579339,91196.0,91192.0,0.06579523]
[1767528697499,0.06579339,91196.0,91195.0,0.01]
[1767528697834,0.05482756,91195.0,91190.0,0.01096611]
[1767528698038,0.05582656,91195.0,91190.0,0.01096611]
[1767528698438,0.05482756,91195.0,91190.0,0.01096611]
[1767528698739,0.01096563,91194.0,91191.0,0.04546915]
[1767528699309,0.06579307,91195.0,91191.0,0.05643514]
[1767528699943,0.06579307,91195.0,91191.0,0.05634475]
[1767528701288,0.06579385,91194.0,91191.0,0.04537876]
[1767528701665,0.05482897,91193.0,91191.0,0.04437976]
[1767528701868,0.01096587,91192.0,91189.0,0.04546915]
[1767528702037,0.01096587,91192.0,91186.0,0.02196]
[1767528702240,0.01096635,91188.0,91185.0,0.02196]
[1767528702441,0.05483297,91186.0,91185.0,0.02196]
[1767528702675,0.05483241,91187.0,91186.0,0.04546915]
[1767528702892,0.06579812,91188.0,91187.0,0.04546915]
[1767528703109,0.04596826,91186.0,91177.0,0.03292767]
[1767528703256,0.01096647,91187.0,91178.0,0.01096755]
[1767528703257,0.01096707,91182.0,91178.0,0.01096755]
[1767528703469,0.06580226,91183.0,91178.0,0.01096755]
[1767528703840,0.06580226,91183.0,91173.0,0.01096815]
[1767528703841,0.01096743,91179.0,91172.0,0.01096827]
[1767528704053,0.06580758,91175.0,91170.0,0.05643767]
[1767528704238,0.01096767,91177.0,91171.0,0.06581025]
[1767528704643,0.01096767,91177.0,91172.0,0.01096827]
[1767528704846,0.06580651,91178.0,91174.0,0.01096803]
[1767528705047,0.01096767,91177.0,91173.0,0.01096815]
[1767528705250,0.01061617,91177.0,91173.0,0.01096815]
[1767528705647,0.06580651,91178.0,91173.0,0.06580885]
[1767528705972,0.06580651,91178.0,91174.0,0.04546915]
[1767528706131,0.01096767,91177.0,91174.0,0.04546915]
[1767528707267,0.0658065,91177.0,91174.0,0.04546915]
[1767528708774,0.01096767,91177.0,91174.0,0.04546915]
[1767528709514,0.01096791,91175.0,91172.0,0.04546915]
[1767528709672,0.05483899,91176.0,91172.0,0.05643742]
[1767528709880,0.06580678,91176.0,91172.0,0.05643742]
[1767528710072,0.0658077,91175.0,91172.0,0.04546915]
[1767528710477,0.01096779,91176.0,91175.0,0.000999]
[1767528710681,0.01096779,91176.0,91172.0,0.04546915]
[1767528711083,0.01096779,91176.0,91172.0,0.11127876]
[1767528711402,0.06580609,91177.0,91172.0,0.05643742]
[1767528711643,0.01096767,91177.0,91173.0,0.0564373]
[1767528711816,0.01096779,91176.0,91173.0,0.04546915]
[1767528713383,0.01096743,91179.0,91177.0,0.04546915]
[1767528713567,0.01096683,91184.0,91179.0,0.04546915]
[1767528713768,0.01096683,91184.0,91181.0,0.04546915]
[1767528713970,0.01096683,91184.0,91181.0,0.04538884]
[1767528714175,0.05483525,91183.0,91181.0,0.04538884]
[1767528714399,0.05383625,91183.0,91181.0,0.04538884]
[1767528714920,0.05483538,91182.0,91181.0,0.04529844]
[1767528715156,0.06580324,91181.0,91177.0,0.01096767]
[1767528715374,0.06571493,91181.0,91177.0,0.04546915]
[1767528715542,0.01096731,91180.0,91177.0,0.04546915]
[1767528715739,0.01087888,91181.0,91180.0,0.000999]
[1767528716088,0.05483538,91182.0,91178.0,0.0564367]
[1767528716294,0.06580245,91182.0,91178.0,0.04546915]
[1767528716542,0.01580318,91181.0,91177.0,0.01096767]
[1767528716746,0.06580245,91182.0,91178.0,0.04546915]
[1767528717513,0.06580245,91182.0,91177.0,0.06580601]
[1767528717918,0.05483649,91181.0,91176.0,0.05643694]
[1767528718127,0.01096719,91181.0,91177.0,0.01096767]
[1767528718325,0.01096719,91181.0,91177.0,0.06580598]
[1767528718558,0.06580245,91182.0,91177.0,0.06580598]
[1767528719261,0.06580245,91182.0,91177.0,0.11127513]
[1767528719470,0.06580174,91183.0,91178.0,0.06580493]
[1767528719680,0.06580174,91183.0,91178.0,0.11127408]
[1767528719876,0.06580251,91182.0,91178.0,0.04546915]
[1767528720436,0.06580174,91183.0,91179.0,0.04720447]
[1767528720639,0.06580268,91182.0,91179.0,0.04720447]
[1767528721528,0.06580143,91184.0,91182.0,0.000999]
[1767528721878,0.05483478,91183.0,91182.0,0.000999]
[1767528722099,0.06580143,91184.0,91182.0,0.000999]
[1767528722239,0.06580143,91184.0,91179.0,0.01096743]
[1767528722967,0.00996783,91184.0,91180.0,0.01096731]
[1767528723286,0.06480219,91184.0,91180.0,5.55e-05]
[1767528723781,0.06580184,91183.0,91180.0,5.55e-05]
[1767528723986,0.06480219,91184.0,91180.0,5.55e-05]
[1767528724211,0.06480219,91184.0,91180.0,0.01102281]
[1767528724399,0.0548342,91184.0,91180.0,0.04725997]
[1767528724825,0.01096683,91184.0,91180.0,0.11306379]
[1767528724943,0.01096683,91184.0,91180.0,0.06585932]
[1767528725932,0.06580109,91184.0,91180.0,0.01102281]
[1767528726305,0.01096683,91184.0,91180.0,0.06585937]
[1767528726504,0.06580109,91184.0,91180.0,0.01102281]
[1767528727091,0.01087851,91184.0,91180.0,0.05822728]
[1767528727515,0.06571269,91184.0,91180.0,0.05822728]
[1767528727685,0.01096695,91183.0,91180.0,0.04725997]
[1767528728284,0.02196,91185.0,91180.0,0.04725997]
[1767528728488,0.08776035,91185.0,91181.0,0.05817166]
[1767528728986,0.03292671,91185.0,91181.0,0.11300757]
[1767528729192,0.0658,91186.0,91181.0,0.11291717]
[1767528729427,0.0658,91186.0,91182.0,0.04720447]
[1767528730223,0.0658,91186.0,91182.0,0.05817154]
[1767528730546,0.01096659,91186.0,91182.0,0.11300684]
[1767528730778,0.06579971,91186.0,91182.0,0.04720447]
[1767528731336,0.01096527,91197.0,91183.0,0.05817142]
[1767528731502,0.01096527,91197.0,91180.0,5.55e-05]
[1767528731503,0.04671963,91187.0,91186.0,0.04873627]
[1767528731698,0.06867963,91187.0,91186.0,0.04873627]
[1767528732352,0.02196,91187.0,91185.0,0.01096671]
[1767528732519,0.02196,91187.0,91185.0,0.06580028]
[1767528732716,0.01096623,91189.0,91185.0,0.06580028]
[1767528733072,0.02196,91188.0,91185.0,0.06580028]
[1767528733608,0.02196,91188.0,91183.0,0.20051555]
[1767528733807,0.02196,91188.0,91184.0,0.05483416]
[1767528734024,0.06579578,91192.0,91187.0,0.01096647]
[1767528734266,0.01096623,91189.0,91185.0,0.06580018]
[1767528734625,0.02196,91190.0,91186.0,0.01096659]
[1767528734821,0.06579467,91193.0,91186.0,0.06579943]
[1767528735061,0.01096599,91191.0,91187.0,0.06579876]
[1767528735257,0.08775542,91192.0,91187.0,0.06579876]
[1767528735417,0.02196,91192.0,91189.0,0.06579697]
[1767528735626,0.02196,91192.0,91188.0,0.01096635]
[1767528735815,0.03292587,91192.0,91188.0,0.01096635]
[1767528736013,0.0218942,91192.0,91188.0,0.06579772]
[1767528736206,0.03286007,91192.0,91187.0,0.06579833]
[1767528736409,0.08768957,91192.0,91187.0,0.06579833]
[1767528736649,0.03286007,91192.0,91187.0,0.06579833]
[1767528736861,0.01096599,91191.0,91187.0,0.06579833]
[1767528737033,0.01078726,91191.0,91188.0,0.04720447]
[1767528737234,0.01071851,91191.0,91188.0,0.04720447]
[1767528737436,0.03286007,91192.0,91188.0,0.04720447]
[1767528738197,0.08768976,91192.0,91188.0,0.04720447]
[1767528738531,0.06579379,91194.0,91192.0,0.04720447]
[1767528738870,0.05482876,91193.0,91192.0,0.04620547]
[1767528739068,0.05482876,91193.0,91187.0,0.06579867]
[1767528739069,0.08775451,91193.0,91189.0,0.04720447]
[1767528740077,0.0657954,91192.0,91189.0,0.04720447]
[1767528740669,0.06570707,91192.0,91189.0,0.04720447]
[1767528741740,0.01096575,91193.0,91189.0,0.0581707]
[1767528741916,0.02196,91191.0,91189.0,0.04720447]
[1767528742932,0.02196,91191.0,91189.0,0.04711406]
[1767528743060,0.06579533,91192.0,91189.0,0.04711406]
[1767528743416,0.02196,91191.0,91189.0,0.04711406]
[1767528743712,0.01096587,91192.0,91189.0,0.04711406]
[1767528744014,0.02196,91190.0,91189.0,0.04711406]
[1767528744170,0.02187167,91190.0,91189.0,0.04711406]
[1767528745017,0.02087267,91190.0,91189.0,0.04711406]
[1767528747530,0.06579387,91194.0,91189.0,0.10194523]
[1767528747751,0.02196,91190.0,91189.0,0.04711406]
[1767528747934,0.02187167,91190.0,91189.0,0.04711406]
[1767528748132,0.02180293,91190.0,91189.0,0.04711406]
[1767528750498,0.01096575,91193.0,91190.0,0.04983837]
[1767528750817,0.02196,91192.0,91190.0,0.04983837]
[1767528752130,0.05459171,91283.0,91192.0,0.04983837]
[1767528752300,0.04503402,91199.0,91194.0,0.01096563]
[1767528752506,0.04503402,91199.0,91194.0,0.06579334]
[1767528752709,0.06578962,91200.0,91196.0,0.04983837]
[1767528752893,0.06579067,91199.0,91196.0,0.03883937]
[1767528753094,0.06578962,91200.0,91196.0,0.03883937]
[1767528753295,0.01096503,91199.0,91196.0,0.03883937]
[1767528753496,0.0548258,91198.0,91196.0,0.03883937]
[1767528754139,0.06579063,91199.0,91196.0,0.03883937]
[1767528755051,0.05482595,91198.0,91196.0,0.03883937]
[1767528755251,0.06579063,91199.0,91196.0,0.03874896]
[1767528755455,0.05482603,91198.0,91196.0,0.03874896]
[1767528755660,0.05482603,91198.0,91196.0,0.03865855]
[1767528755806,0.06579063,91199.0,91196.0,0.03865855]
[1767528756367,0.05482594,91198.0,91196.0,0.03865855]
[1767528757888,0.06579063,91199.0,91196.0,0.03865855]
[1767528758450,0.00996603,91199.0,91195.0,0.01096551]
[1767528758654,0.02187166,91198.0,91195.0,0.04602585]
[1767528758990,0.02178332,91198.0,91194.0,0.04602585]
[1767528759551,0.0216929,91198.0,91194.0,0.04602585]
[1767528759775,0.0216929,91198.0,91195.0,0.05699136]
[1767528759933,0.02196,91199.0,91198.0,0.04602585]
[1767528760139,0.07678472,91200.0,91198.0,0.04602585]
[1767528760340,0.02196,91200.0,91198.0,0.04602585]
[1767528760657,0.02196,91200.0,91197.0,0.06579131]
[1767528760874,0.02196,91200.0,91196.0,0.05699124]
[1767528761485,0.02196,91200.0,91196.0,0.11181806]
[1767528762204,0.02196,91200.0,91197.0,0.01096527]
[1767528762586,0.02196,91200.0,91196.0,0.11181806]
[1767528763207,0.02196,91200.0,91198.0,0.04602585]
[1767528763410,0.02196,91200.0,91196.0,0.06579221]
[1767528763809,0.03292491,91200.0,91195.0,0.06579307]
[1767528764013,0.000999,91196.0,91195.0,0.01096551]
[1767528764180,0.01096515,91198.0,91193.0,0.05677741]
[1767528764379,0.01096515,91198.0,91193.0,0.01075156]
[1767528765234,0.06579048,91199.0,91194.0,0.0657935]
[1767528766253,0.000999,91194.0,91193.0,0.01075156]
[1767528766550,0.01096527,91197.0,91192.0,0.016363]
[1767528766757,0.01087693,91197.0,91193.0,0.11182035]
[1767528767267,0.01096515,91198.0,91194.0,0.05699148]
[1767528767916,0.06579123,91199.0,91195.0,0.01096551]
[1767528768166,0.06579123,91199.0,91195.0,0.04602585]
[1767528769389,0.06579115,91198.0,91195.0,0.04602585]
[1767528771186,0.06579034,91199.0,91195.0,0.04593542]
[1767528771387,0.01096503,91199.0,91195.0,0.0568105]
[1767528771703,0.0657907,91199.0,91195.0,0.04584499]
[1767528771905,0.06579094,91198.0,91195.0,0.04584499]
[1767528772087,0.0657907,91199.0,91195.0,0.04584499]
[1767528772623,0.06579032,91199.0,91195.0,0.0568105]
[1767528772822,0.06579032,91199.0,91195.0,0.04584499]
[1767528773030,0.01096503,91199.0,91196.0,0.04602585]
[1767528773378,0.06579063,91200.0,91196.0,0.04602585]
[1767528773577,0.06578957,91200.0,91196.0,0.04602585]
[1767528773776,0.02947304,91224.0,91204.0,0.04602585]
[1767528773777,0.01119482,91207.0,91204.0,0.04602585]
[1767528774133,0.01096431,91205.0,91202.0,0.04602585]
[1767528774334,0.01096431,91205.0,91200.0,0.05699076]
[1767528774533,0.0657864,91205.0,91200.0,0.06578894]
[1767528774729,0.06578634,91205.0,91200.0,0.06578894]
[1767528775514,0.06578634,91205.0,91200.0,0.01096491]
[1767528775736,0.06578783,91203.0,91198.0,0.06579076]
[1767528775933,0.05482352,91202.0,91198.0,0.01096515]
[1767528776282,0.05482352,91202.0,91198.0,0.056991]
[1767528776478,0.05482352,91202.0,91198.0,0.01096515]
[1767528777215,0.06578819,91202.0,91198.0,0.01096515]
[1767528777804,0.06578819,91202.0,91198.0,0.056991]
[1767528778143,0.06578819,91202.0,91198.0,0.01096515]
[1767528778725,0.06578819,91202.0,91197.0,0.06579155]
[1767528780376,0.06578819,91202.0,91197.0,0.1133441]
[1767528780580,0.06578819,91202.0,91198.0,0.04755255]
[1767528781167,0.06578819,91202.0,91197.0,0.06579155]
[1767528782052,0.06578783,91203.0,91199.0,0.04755255]
[1767528783376,0.03610485,91203.0,91199.0,0.04755255]
[1767528784085,0.0657866,91204.0,91203.0,0.000999]
[1767528784253,0.0657866,91204.0,91203.0,0.00090857]
[1767528784659,0.0657866,91204.0,91199.0,0.11334254]
[1767528784861,0.06578744,91203.0,91199.0,0.04755255]
[1767528785406,0.01096455,91203.0,91199.0,0.11334262]
[1767528785606,0.0657866,91204.0,91203.0,0.000909]
[1767528785872,0.0657866,91204.0,91200.0,0.04755255]
[1767528787931,0.06578742,91203.0,91200.0,0.04755255]
[1767528789495,0.06578742,91203.0,91198.0,0.11334343]
[1767528789652,0.03286997,91191.0,91190.0,0.02031681]
[1767528789853,0.01089735,91190.0,91176.0,0.04755255]
[1767528790067,0.06579865,91188.0,91183.0,0.0585195]
[1767528790261,0.01096647,91187.0,91183.0,0.04755255]
[1767528790605,0.01094093,91190.0,91186.0,0.01096659]
[1767528790808,0.01094093,91190.0,91186.0,0.06579941]
[1767528791014,4.358e-05,91190.0,91186.0,0.06579941]
[1767528791569,0.01100969,91190.0,91186.0,0.06579941]
[1767528791993,0.06584027,91190.0,91186.0,0.01096659]
[1767528792200,0.01100969,91190.0,91186.0,0.06579939]
[1767528793943,4.358e-05,91190.0,91186.0,0.06579939]
[1767528795035,0.01100969,91190.0,91186.0,0.01096659]
[1767528795617,0.01091926,91190.0,91186.0,0.01096659]
[1767528796278,0.01091926,91190.0,91186.0,0.06579953]
[1767528797543,0.0657971,91191.0,91187.0,0.01096647]
[1767528797889,0.0657971,91191.0,91186.0,0.06579953]
[1767528798436,0.0657971,91191.0,91187.0,0.01096647]
[1767528799084,0.0657971,91191.0,91187.0,0.06579882]
[1767528800590,0.06579526,91192.0,91187.0,0.01096647]
[1767528800799,0.01096587,91192.0,91191.0,0.000909]
[1767528801028,0.0657953,91192.0,91191.0,0.000909]
[1767528801233,0.0657953,91192.0,91188.0,0.01096635]
[1767528801731,0.06579537,91192.0,91188.0,0.01096635]
[1767528802303,0.06579508,91193.0,91188.0,0.06579811]
[1767528802485,0.04253731,91192.0,91189.0,0.05483109]
[1767528802692,0.04253731,91192.0,91190.0,0.05483055]
[1767528802889,0.04162831,91192.0,91189.0,0.06579732]
[1767528803107,0.01530027,91192.0,91191.0,0.05482997]
[1767528803310,0.00365179,91192.0,91191.0,0.05482997]
[1767528803675,0.02196,91195.0,91192.0,0.0548293]
[1767528803877,0.01096539,91196.0,91192.0,0.01096587]
[1767528804072,0.0657922,91197.0,91196.0,0.04755255]
[1767528804271,0.01196439,91196.0,91193.0,0.04755255]
[1767528804478,0.06679146,91196.0,91193.0,0.04755255]
[1767528804880,0.0657922,91197.0,91193.0,0.04755255]
[1767528805515,0.06579241,91196.0,91193.0,0.04755255]
[1767528806307,0.0657922,91197.0,91193.0,0.04755255]
[1767528806665,0.01096539,91196.0,91193.0,0.04755255]
[1767528806839,0.0657922,91197.0,91193.0,0.04755255]
[1767528808331,0.02196,91198.0,91194.0,0.05851818]
[1767528808508,0.02196,91198.0,91194.0,0.11334629]
[1767528808509,0.03292515,91198.0,91194.0,0.11334629]
[1767528808713,0.087751,91198.0,91194.0,0.04755255]
[1767528809320,0.06579171,91197.0,91194.0,0.04755255]
[1767528810466,0.01096527,91197.0,91194.0,0.04755255]
[1767528810630,0.087751,91198.0,91194.0,0.04755255]
[1767528810828,0.08775168,91197.0,91194.0,0.04755255]
[1767528811484,0.02196,91197.0,91194.0,0.04755255]
[1767528811660,0.03292527,91197.0,91194.0,0.04755255]
[1767528811864,0.01096527,91197.0,91194.0,0.04755255]
[1767528812203,0.03292527,91197.0,91194.0,0.04755255]
[1767528812386,0.065791,91198.0,91194.0,0.04755255]
[1767528812387,0.01096515,91198.0,91197.0,0.0453303]
[1767528812594,0.06579091,91198.0,91197.0,0.0453303]
[1767528812790,0.06579091,91198.0,91194.0,0.06579375]
[1767528813292,0.01096515,91198.0,91194.0,0.06579375]
[1767528814276,0.06579024,91199.0,91194.0,0.06579375]
[1767528815087,0.06579024,91199.0,91195.0,0.01096551]
[1767528816125,0.08774964,91200.0,91195.0,0.06579196]
[1767528816426,0.01096503,91199.0,91195.0,0.06579196]
[1767528816960,0.08774964,91200.0,91195.0,0.06579196]
[1767528817835,0.06578964,91200.0,91195.0,0.06579196]
[1767528818038,0.06578964,91200.0,91196.0,0.04595586]
[1767528818217,0.01096419,91206.0,91205.0,0.04595586]
[1767528818428,0.05482284,91203.0,91199.0,0.04595586]
[1767528818817,0.06578807,91202.0,91199.0,0.04595586]
[1767528819117,0.05482402,91201.0,91199.0,0.04595586]
[1767528819340,0.06578807,91202.0,91199.0,0.04595586]
[1767528820738,0.05482444,91201.0,91199.0,0.04595586]
[1767528820943,0.05482456,91200.0,91199.0,0.04595586]
[1767528821157,0.05482444,91201.0,91199.0,0.04595586]
[1767528822443,0.06578803,91202.0,91199.0,0.04595586]
[1767528822615,0.06578849,91202.0,91199.0,0.04595586]
[1767528823697,0.05482408,91201.0,91199.0,0.04595586]
[1767528823830,0.05482456,91200.0,91199.0,0.04595586]
[1767528824025,0.05482456,91200.0,91199.0,0.04495686]
[1767528824226,0.05482408,91201.0,91199.0,0.04495686]
[1767528826086,0.06578803,91202.0,91199.0,0.04495686]
[1767528826535,0.05482405,91201.0,91199.0,0.04495686]
[1767528826884,0.05482405,91201.0,91197.0,0.01096527]
[1767528826885,0.06578884,91201.0,91197.0,0.01096527]
[1767528827385,0.06578884,91201.0,91197.0,0.05692113]
[1767528827602,0.06578974,91200.0,91197.0,0.04595586]
[1767528828991,0.02096527,91197.0,91187.0,0.05692233]
[1767528829150,0.01096563,91194.0,91188.0,0.0548313]
[1767528829353,0.06579427,91194.0,91190.0,0.01096611]
[1767528829549,0.06579387,91194.0,91190.0,0.01096611]
[1767528829753,0.06579387,91194.0,91189.0,0.06579737]
[1767528830164,0.01096575,91193.0,91189.0,0.01096623]
[1767528830380,0.05482888,91193.0,91186.0,0.05483249]
[1767528830563,0.05482888,91193.0,91188.0,0.05483161]
[1767528831270,0.06579463,91193.0,91188.0,0.06579796]
[1767528831482,0.01096587,91192.0,91188.0,0.06579796]
[1767528831679,0.06579463,91193.0,91188.0,0.06579796]
[1767528832114,0.06579525,91192.0,91187.0,0.0657987]
[1767528832318,0.06579354,91195.0,91192.0,0.000999]
[1767528832839,0.06579354,91195.0,91191.0,0.05692185]
[1767528833013,0.01096563,91194.0,91191.0,0.04595586]
[1767528833336,0.06579397,91194.0,91191.0,0.04595586]
[1767528833537,0.06579354,91195.0,91191.0,0.04595586]
[1767528834040,0.06579237,91196.0,91195.0,0.000999]
[1767528834385,0.06579237,91196.0,91192.0,0.05692173]
[1767528834626,0.01096539,91196.0,91193.0,0.04595586]
[1767528835441,0.06579257,91196.0,91193.0,0.04595586]
[1767528836367,0.05482797,91195.0,91193.0,0.04595586]
[1767528836915,0.06579257,91196.0,91193.0,0.04595586]
[1767528837312,0.05482778,91195.0,91193.0,0.04595586]
[1767528837538,0.06579257,91196.0,91193.0,0.04595586]
[1767528837939,0.05483184,91188.0,91179.0,0.01096743]
[1767528838218,0.01096623,91189.0,91179.0,0.01096743]
[1767528838423,0.05483186,91188.0,91183.0,0.01096695]
[1767528838629,0.01096647,91187.0,91183.0,0.01096695]
[1767528838835,0.01096647,91187.0,91184.0,0.05081551]
[1767528839040,0.06579922,91187.0,91184.0,0.05081551]
[1767528839236,0.05483344,91186.0,91182.0,0.04595586]
[1767528839473,0.01096647,91187.0,91182.0,0.11175802]
[1767528839784,0.06579868,91188.0,91183.0,0.06580126]
[1767528840104,0.06579868,91188.0,91184.0,0.01096683]
[1767528840286,0.06579868,91188.0,91183.0,0.06580126]
[1767528840492,0.01096659,91186.0,91182.0,0.11175802]
[1767528840668,0.06579886,91187.0,91182.0,0.11175802]
[1767528840868,0.06579971,91186.0,91182.0,0.06580216]
[1767528841074,0.06579886,91187.0,91182.0,0.06580216]
[1767528841483,0.06579886,91187.0,91182.0,0.06580243]
[1767528841693,0.06579835,91188.0,91183.0,0.06580173]
[1767528841892,0.06579897,91187.0,91183.0,0.01096695]
[1767528842096,0.06579897,91187.0,91182.0,0.11433008]
[1767528842291,0.06579742,91189.0,91185.0,0.01096671]
[1767528842464,0.06579742,91189.0,91187.0,0.000999]
[1767528843022,0.01096635,91188.0,91184.0,0.06580053]
[1767528843182,0.06570698,91189.0,91184.0,0.06580053]
[1767528843894,0.01096647,91187.0,91183.0,0.06580169]
[1767528844223,0.01096635,91188.0,91183.0,0.06580169]
[1767528844764,0.01096635,91188.0,91184.0,0.06580089]
[1767528845021,0.06579821,91188.0,91184.0,0.06580099]
[1767528846238,0.01633824,91194.0,91190.0,0.05949376]
[1767528846443,0.06579295,91196.0,91191.0,0.04852765]
[1767528846644,0.06579314,91195.0,91190.0,0.01100969]
[1767528846877,0.01096539,91196.0,91191.0,0.01096599]
[1767528847022,0.06579243,91196.0,91191.0,0.06579595]
[1767528847230,0.06579243,91196.0,91192.0,0.01096587]
[1767528847549,0.06579243,91196.0,91192.0,0.01087542]
[1767528847716,0.03292527,91197.0,91192.0,0.01087542]
[1767528847911,0.02196,91197.0,91193.0,0.01096575]
[1767528848152,0.02187166,91197.0,91193.0,0.01096575]
[1767528848356,0.03283693,91197.0,91192.0,0.06570472]
[1767528848557,0.03283693,91197.0,91193.0,0.01096575]
[1767528848754,0.03276817,91197.0,91193.0,0.01096575]
[1767528849060,0.03276817,91197.0,91192.0,0.06570472]
[1767528849061,0.0218029,91197.0,91187.0,0.10336002]
[1767528849362,0.02185442,91197.0,91194.0,0.01096563]
[1767528849919,0.02185442,91197.0,91194.0,0.06579377]
[1767528850948,0.01,91194.0,91192.0,0.01096587]
[1767528851367,0.02185442,91197.0,91194.0,0.01096563]
[1767528852577,5.152e-05,91197.0,91194.0,0.01096563]
[1767528853338,5.152e-05,91197.0,91194.0,0.06579377]
[1767528853972,5.152e-05,91197.0,91195.0,0.05482745]
[1767528854658,5.152e-05,91197.0,91196.0,0.05482696]
[1767528854812,0.02196,91199.0,91196.0,0.06579235]
[1767528855760,0.02187165,91199.0,91196.0,0.06579235]
[1767528857902,0.02187165,91199.0,91191.0,0.23028579]
[1767528857903,0.05482696,91196.0,91186.0,0.21932982]
[1767528858252,0.05482899,91193.0,91187.0,0.01096647]
[1767528858452,0.06579474,91193.0,91188.0,0.06579806]
[1767528858866,0.06579474,91193.0,91188.0,0.11432571]
[1767528859164,0.01096599,91191.0,91188.0,0.04852765]
[1767528859311,0.01096599,91191.0,91187.0,0.0657985]
[1767528859721,0.01096563,91194.0,91187.0,0.0657985]
[1767528860298,0.01096587,91192.0,91188.0,0.01096635]
[1767528861201,0.06579485,91193.0,91188.0,0.06579796]
[1767528861373,0.06579485,91193.0,91189.0,0.01096623]
[1767528861586,0.0657939,91194.0,91189.0,0.06579737]
[1767528861932,0.06570555,91194.0,91189.0,0.06579737]
[1767528863233,0.06570555,91194.0,91189.0,0.06570691]
[1767528864261,0.06579359,91195.0,91190.0,0.06579668]
[1767528864502,0.01096539,91196.0,91191.0,0.06579591]
[1767528864901,0.06579236,91196.0,91191.0,0.06579591]
[1767528865106,0.01096539,91196.0,91191.0,0.06579591]
[1767528865304,0.01096515,91198.0,91193.0,0.01096575]
[1767528865517,0.01096515,91198.0,91193.0,0.06579439]
[1767528865665,0.01096515,91198.0,91194.0,0.0657937]
[1767528865880,0.02196,91199.0,91195.0,0.01096551]
[1767528866079,0.02196,91199.0,91196.0,0.06579211]
[1767528866720,0.02196,91199.0,91197.0,0.05482625]
[1767528866920,0.02196,91199.0,91196.0,0.06579211]
[1767528867263,0.02196,91199.0,91197.0,0.05482577]
[1767528867467,0.02096101,91199.0,91198.0,0.05482576]
[1767528868268,0.03289082,91201.0,91198.0,0.06579091]
[1767528868493,0.02196,91202.0,91199.0,0.06578997]
[1767528868649,0.05485082,91202.0,91199.0,0.06578997]
[1767528868823,0.05485082,91202.0,91199.0,0.01096503]
[1767528869024,0.05485082,91202.0,91199.0,0.0657899]
[1767528874485,0.05485082,91202.0,91198.0,0.06579091]
[1767528875525,0.04385549,91202.0,91198.0,0.01096515]
[1767528875671,0.02196,91201.0,91198.0,0.01096515]
[1767528875871,0.02187614,91201.0,91198.0,0.06579087]
[1767528876229,0.02178777,91201.0,91198.0,0.01096515]
[1767528876436,0.0216994,91201.0,91198.0,0.01096515]
[1767528876604,0.0216994,91201.0,91197.0,0.06579147]
[1767528878109,0.01096443,91204.0,91199.0,0.01096503]
[1767528878302,0.02196,91203.0,91200.0,0.01096491]
[1767528879330,0.02196,91203.0,91199.0,0.06578977]
[1767528879732,0.02196,91203.0,91199.0,0.06579008]
[1767528880048,0.08774749,91203.0,91199.0,0.06579016]
[1767528880750,0.08774749,91203.0,91199.0,0.01096503]
[1767528881866,0.02196,91203.0,91200.0,0.06578925]
[1767528882081,0.02196,91203.0,91200.0,0.01096491]
[1767528882877,0.02196,91203.0,91199.0,0.06578899]
[1767528883084,0.06578671,91204.0,91199.0,0.06578899]
[1767528883484,0.02196,91203.0,91199.0,0.06578899]
[1767528883786,0.02196,91203.0,91199.0,0.06579018]
[1767528883969,0.03292455,91203.0,91199.0,0.01096503]
[1767528884151,0.03292455,91203.0,91199.0,0.06579016]
[1767528885700,0.000999,91199.0,91198.0,0.01096515]
[1767528885903,0.01096539,91196.0,91191.0,0.01096599]